[Event "Titled Tuesday Blitz April 4 Early 2023"]
[White "Lymar, Vladislav"]
[Black "Ruperez Benito, Antonio"]
[WhiteFideId "14162180"]
[BlackFideId "22245049"]
[WhiteElo "2234"]
[BlackElo "2273"]
[Result "1-0"]
[Round "05"]
[TimeControl "180+2"]
[Date "2023.04.04"]
[WhiteClock "0:00:07"]
[BlackClock "0:00:09"]

1. d4 {[%clk 0:03:00]}  e6 {[%clk 0:03:00]} 2. c4 {[%clk 0:03:00]}  d5 {[%clk 0:02:56]} 3. Nc3 {[%clk 0:03:00]}  Nf6 {[%clk 0:02:57]} 4. Nf3 {[%clk 0:03:01]}  Be7 {[%clk 0:02:57]} 5. Bf4 {[%clk 0:03:01]}  O-O {[%clk 0:02:58]} 6. e3 {[%clk 0:03:02]}  dxc4 {[%clk 0:02:57]} 7. Bxc4 {[%clk 0:02:58]}  a6 {[%clk 0:02:58]} 8. a4 {[%clk 0:02:54]}  c5 {[%clk 0:02:58]} 9. O-O {[%clk 0:02:50]}  Nc6 {[%clk 0:02:57]} 10. Qd2 {[%clk 0:02:34]}  cxd4 {[%clk 0:02:52]} 11. exd4 {[%clk 0:02:34]}  Na5 {[%clk 0:02:50]} 12. Ba2 {[%clk 0:02:29]}  Nd5 {[%clk 0:02:45]} 13. Nxd5 {[%clk 0:02:14]}  exd5 {[%clk 0:02:46]} 14. Rac1 {[%clk 0:02:11]}  Be6 {[%clk 0:02:41]} 15. Bc7 {[%clk 0:02:11]}  Nc4 {[%clk 0:02:13]} 16. Rxc4 {[%clk 0:02:07]}  Qd7 {[%clk 0:02:13]} 17. Ne5 {[%clk 0:02:03]}  Qe8 {[%clk 0:02:08]} 18. Rcc1 {[%clk 0:01:58]}  Qxa4 {[%clk 0:02:05]} 19. Bb1 {[%clk 0:01:56]}  Rac8 {[%clk 0:02:03]} 20. Bb6 {[%clk 0:01:54]}  Qb5 {[%clk 0:01:24]} 21. Ba5 {[%clk 0:01:39]}  h6 {[%clk 0:01:11]} 22. f4 {[%clk 0:01:30]}  Rxc1 {[%clk 0:00:59]} 23. Rxc1 {[%clk 0:01:31]}  Re8 {[%clk 0:00:50]} 24. Bd3 {[%clk 0:01:22]}  Qa4 {[%clk 0:00:49]} 25. Bc3 {[%clk 0:01:21]}  b5 {[%clk 0:00:47]} 26. b3 {[%clk 0:01:04]}  Qxb3 {[%clk 0:00:39]} 27. Bc2 {[%clk 0:01:04]}  Qa3 {[%clk 0:00:37]} 28. Ra1 {[%clk 0:01:04]}  Qd6 {[%clk 0:00:38]} 29. f5 {[%clk 0:01:03]}  Bc8 {[%clk 0:00:37]} 30. Qd3 {[%clk 0:00:58]}  Bf6 {[%clk 0:00:34]} 31. Bb3 {[%clk 0:00:52]}  b4 {[%clk 0:00:33]} 32. Bb2 {[%clk 0:00:51]}  a5 {[%clk 0:00:34]} 33. Rc1 {[%clk 0:00:50]}  Ba6 {[%clk 0:00:32]} 34. Qf3 {[%clk 0:00:48]}  Bb7 {[%clk 0:00:28]} 35. h3 {[%clk 0:00:39]}  Qb6 {[%clk 0:00:24]} 36. Kh1 {[%clk 0:00:36]}  Rd8 {[%clk 0:00:24]} 37. Ba4 {[%clk 0:00:20]}  Qd6 {[%clk 0:00:19]} 38. Bc6 {[%clk 0:00:16]}  Bc8 {[%clk 0:00:14]} 39. Ng4 {[%clk 0:00:12]}  Bg5 {[%clk 0:00:14]} 40. Rc2 {[%clk 0:00:11]}  Bd7 {[%clk 0:00:14]} 41. Bxd7 {[%clk 0:00:11]}  Qxd7 {[%clk 0:00:15]} 42. f6 {[%clk 0:00:11]}  g6 {[%clk 0:00:13]} 43. Bc1 {[%clk 0:00:09]}  Bxc1 {[%clk 0:00:12]} 44. Rxc1 {[%clk 0:00:10]}  h5 {[%clk 0:00:11]} 45. Qf4 {[%clk 0:00:08]}  Qe6 {[%clk 0:00:09]} 46. Qh6 {[%clk 0:00:07]} 1-0


[Site "https://www.chess.com"]

[Event "Titled Tuesday Blitz April 4 Early 2023"]
[White "Nikologorskiy, Konstantin"]
[Black "Ramirez Vido, Robert Yorisan"]
[WhiteFideId "24111708"]
[BlackFideId "3513823"]
[WhiteElo "2293"]
[BlackElo "2408"]
[Result "1-0"]
[Round "05"]
[TimeControl "180+2"]
[Date "2023.04.04"]
[WhiteClock "0:00:33"]
[BlackClock "0:00:21"]

1. d4 {[%clk 0:03:00]}  g6 {[%clk 0:02:51]} 2. c4 {[%clk 0:03:01]}  Nf6 {[%clk 0:02:47]} 3. Nc3 {[%clk 0:03:02]}  d5 {[%clk 0:02:41]} 4. Nf3 {[%clk 0:03:03]}  Bg7 {[%clk 0:02:41]} 5. h4 {[%clk 0:03:03]}  c6 {[%clk 0:02:33]} 6. Bg5 {[%clk 0:03:02]}  h6 {[%clk 0:02:27]} 7. Bxf6 {[%clk 0:02:58]}  Bxf6 {[%clk 0:02:28]} 8. h5 {[%clk 0:02:58]}  g5 {[%clk 0:02:27]} 9. e3 {[%clk 0:02:59]}  Bf5 {[%clk 0:02:26]} 10. cxd5 {[%clk 0:02:54]}  cxd5 {[%clk 0:02:26]} 11. Qb3 {[%clk 0:02:54]}  g4 {[%clk 0:01:59]} 12. Nd2 {[%clk 0:02:41]}  O-O {[%clk 0:01:44]} 13. Qxd5 {[%clk 0:02:32]}  Qc8 {[%clk 0:01:37]} 14. Be2 {[%clk 0:02:25]}  Nc6 {[%clk 0:01:25]} 15. O-O {[%clk 0:02:02]}  Rd8 {[%clk 0:01:23]} 16. Qb3 {[%clk 0:01:58]}  b6 {[%clk 0:01:10]} 17. Nde4 {[%clk 0:01:56]}  Bg7 {[%clk 0:01:08]} 18. Ng3 {[%clk 0:01:55]}  Be6 {[%clk 0:00:50]} 19. d5 {[%clk 0:01:33]}  Na5 {[%clk 0:00:49]} 20. Qb5 {[%clk 0:01:30]}  Bd7 {[%clk 0:00:49]} 21. Qd3 {[%clk 0:01:27]}  Qc7 {[%clk 0:00:41]} 22. Rac1 {[%clk 0:01:23]}  Qe5 {[%clk 0:00:41]} 23. Qe4 {[%clk 0:01:16]}  Rac8 {[%clk 0:00:36]} 24. Ba6 {[%clk 0:01:13]}  Rc7 {[%clk 0:00:33]} 25. Qxe5 {[%clk 0:01:07]}  Bxe5 {[%clk 0:00:33]} 26. Nge2 {[%clk 0:01:08]}  Nc4 {[%clk 0:00:32]} 27. Bxc4 {[%clk 0:01:07]}  Rxc4 {[%clk 0:00:32]} 28. b3 {[%clk 0:01:08]}  Rc7 {[%clk 0:00:30]} 29. Ne4 {[%clk 0:01:01]}  Rdc8 {[%clk 0:00:29]} 30. Rxc7 {[%clk 0:01:01]}  Rxc7 {[%clk 0:00:30]} 31. Rc1 {[%clk 0:01:02]}  Rxc1+ {[%clk 0:00:29]} 32. Nxc1 {[%clk 0:01:03]}  Bf5 {[%clk 0:00:28]} 33. f3 {[%clk 0:00:59]}  gxf3 {[%clk 0:00:28]} 34. gxf3 {[%clk 0:01:00]}  Bxe4 {[%clk 0:00:25]} 35. fxe4 {[%clk 0:01:01]}  Kg7 {[%clk 0:00:26]} 36. Nd3 {[%clk 0:01:01]}  Bc3 {[%clk 0:00:23]} 37. e5 {[%clk 0:01:01]}  f6 {[%clk 0:00:21]} 38. e6 {[%clk 0:00:43]}  f5 {[%clk 0:00:21]} 39. Kf2 {[%clk 0:00:44]}  Kf6 {[%clk 0:00:22]} 40. Kf3 {[%clk 0:00:44]}  Kg5 {[%clk 0:00:22]} 41. d6 {[%clk 0:00:33]}  exd6 {[%clk 0:00:21]} 42. e7 {[%clk 0:00:33]} 1-0


[Site "https://www.chess.com"]

[Event "Titled Tuesday Blitz April 4 Early 2023"]
[White "Topalov, Aleksandar"]
[Black "Dixit, Nikhil"]
[WhiteFideId "925659"]
[BlackFideId "5059534"]
[WhiteElo "2151"]
[BlackElo "2207"]
[Result "1-0"]
[Round "05"]
[TimeControl "180+2"]
[Date "2023.04.04"]
[WhiteClock "0:02:16"]
[BlackClock "0:01:33"]

1. b3 {[%clk 0:02:57]}  Nf6 {[%clk 0:02:59]} 2. Bb2 {[%clk 0:02:57]}  g6 {[%clk 0:03:00]} 3. Bxf6 {[%clk 0:02:56]}  exf6 {[%clk 0:03:00]} 4. c4 {[%clk 0:02:56]}  Bg7 {[%clk 0:03:01]} 5. Nc3 {[%clk 0:02:56]}  O-O {[%clk 0:03:01]} 6. e3 {[%clk 0:02:57]}  f5 {[%clk 0:02:59]} 7. Nge2 {[%clk 0:02:57]}  d6 {[%clk 0:02:56]} 8. g3 {[%clk 0:02:57]}  Nc6 {[%clk 0:02:51]} 9. d4 {[%clk 0:02:57]}  a5 {[%clk 0:02:52]} 10. Bg2 {[%clk 0:02:56]}  Bd7 {[%clk 0:02:51]} 11. O-O {[%clk 0:02:56]}  Rb8 {[%clk 0:02:29]} 12. a3 {[%clk 0:02:54]}  h5 {[%clk 0:02:27]} 13. Rb1 {[%clk 0:02:53]}  b6 {[%clk 0:02:26]} 14. b4 {[%clk 0:02:51]}  axb4 {[%clk 0:02:27]} 15. axb4 {[%clk 0:02:51]}  h4 {[%clk 0:02:26]} 16. Nd5 {[%clk 0:02:35]}  Ne7 {[%clk 0:02:20]} 17. Nef4 {[%clk 0:02:33]}  Nxd5 {[%clk 0:02:14]} 18. Nxd5 {[%clk 0:02:31]}  c6 {[%clk 0:02:13]} 19. Nf4 {[%clk 0:02:31]}  Qg5 {[%clk 0:02:11]} 20. b5 {[%clk 0:02:30]}  cxb5 {[%clk 0:02:02]} 21. cxb5 {[%clk 0:02:30]}  hxg3 {[%clk 0:02:02]} 22. hxg3 {[%clk 0:02:30]}  Bf6 {[%clk 0:02:03]} 23. Bc6 {[%clk 0:02:25]}  Bc8 {[%clk 0:01:52]} 24. Kg2 {[%clk 0:02:24]}  Kg7 {[%clk 0:01:52]} 25. Rh1 {[%clk 0:02:23]}  Bb7 {[%clk 0:01:52]} 26. Qf3 {[%clk 0:02:21]}  Ba8 {[%clk 0:01:50]} 27. Nd5 {[%clk 0:02:20]}  Rfc8 {[%clk 0:01:35]} 28. Bxa8 {[%clk 0:02:16]}  Rxa8 {[%clk 0:01:33]} 29. Nxb6 {[%clk 0:02:16]} 1-0


[Site "https://www.chess.com"]

[Event "Titled Tuesday Blitz April 4 Early 2023"]
[White "crosky"]
[Black "Drori, Saar"]
[BlackFideId "2812444"]
[WhiteElo "2363"]
[BlackElo "2322"]
[Result "0-1"]
[Round "05"]
[TimeControl "180+2"]
[Date "2023.04.04"]
[WhiteClock "0:00:04"]
[BlackClock "0:00:24"]

1. c4 {[%clk 0:03:00]}  c5 {[%clk 0:03:00]} 2. g3 {[%clk 0:03:00]}  g6 {[%clk 0:02:59]} 3. Bg2 {[%clk 0:03:01]}  Bg7 {[%clk 0:02:59]} 4. Nc3 {[%clk 0:03:02]}  Nc6 {[%clk 0:02:57]} 5. a3 {[%clk 0:03:02]}  Nh6 {[%clk 0:02:48]} 6. Rb1 {[%clk 0:03:01]}  O-O {[%clk 0:02:47]} 7. b4 {[%clk 0:03:00]}  d6 {[%clk 0:02:40]} 8. Nf3 {[%clk 0:02:54]}  Bf5 {[%clk 0:02:36]} 9. e4 {[%clk 0:02:41]}  Bg4 {[%clk 0:02:35]} 10. Qc2 {[%clk 0:02:41]}  f5 {[%clk 0:02:23]} 11. Ng5 {[%clk 0:01:50]}  Nd4 {[%clk 0:02:19]} 12. Qd3 {[%clk 0:01:51]}  fxe4 {[%clk 0:02:17]} 13. Bxe4 {[%clk 0:01:38]}  Nf7 {[%clk 0:01:46]} 14. Nxf7 {[%clk 0:00:44]}  Rxf7 {[%clk 0:01:47]} 15. f4 {[%clk 0:00:45]}  e5 {[%clk 0:00:53]} 16. h3 {[%clk 0:00:38]}  Be6 {[%clk 0:00:51]} 17. Nd5 {[%clk 0:00:25]}  exf4 {[%clk 0:00:37]} 18. Nxf4 {[%clk 0:00:25]}  Rxf4 {[%clk 0:00:36]} 19. gxf4 {[%clk 0:00:25]}  Qh4+ {[%clk 0:00:36]} 20. Kd1 {[%clk 0:00:24]}  Bg4+ {[%clk 0:00:35]} 21. hxg4 {[%clk 0:00:19]}  Qxg4+ {[%clk 0:00:35]} 22. Ke1 {[%clk 0:00:17]}  Re8 {[%clk 0:00:35]} 23. Kf1 {[%clk 0:00:09]}  Qxf4+ {[%clk 0:00:30]} 24. Kg2 {[%clk 0:00:05]}  Rxe4 {[%clk 0:00:30]} 25. Rf1 {[%clk 0:00:04]}  Qg5+ {[%clk 0:00:25]} 26. Qg3 {[%clk 0:00:04]}  Rg4 {[%clk 0:00:24]} 0-1


[Site "https://www.chess.com"]

[Event "Titled Tuesday Blitz April 4 Early 2023"]
[White "Matveeva, Olga"]
[Black "Pham, Le Thao Nguyen"]
[WhiteFideId "24107018"]
[BlackFideId "12401226"]
[WhiteElo "2056"]
[BlackElo "2286"]
[Result "0-1"]
[Round "05"]
[TimeControl "180+2"]
[Date "2023.04.04"]
[WhiteClock "0:00:07"]
[BlackClock "0:00:19"]

1. d4 {[%clk 0:03:00]}  Nf6 {[%clk 0:02:58]} 2. c4 {[%clk 0:03:00]}  e6 {[%clk 0:02:50]} 3. g3 {[%clk 0:03:00]}  Bb4+ {[%clk 0:02:34]} 4. Bd2 {[%clk 0:03:00]}  Qe7 {[%clk 0:02:34]} 5. Nf3 {[%clk 0:02:58]}  O-O {[%clk 0:02:29]} 6. Bg2 {[%clk 0:02:57]}  Bxd2+ {[%clk 0:02:28]} 7. Nbxd2 {[%clk 0:02:55]}  d6 {[%clk 0:02:28]} 8. O-O {[%clk 0:02:47]}  e5 {[%clk 0:02:25]} 9. e4 {[%clk 0:02:08]}  a5 {[%clk 0:02:11]} 10. Qc2 {[%clk 0:02:06]}  Nc6 {[%clk 0:01:56]} 11. d5 {[%clk 0:01:59]}  Nb4 {[%clk 0:01:50]} 12. Qc3 {[%clk 0:01:56]}  c5 {[%clk 0:01:45]} 13. a3 {[%clk 0:01:38]}  Na6 {[%clk 0:01:42]} 14. b3 {[%clk 0:01:34]}  Bd7 {[%clk 0:01:25]} 15. Ne1 {[%clk 0:01:27]}  Nc7 {[%clk 0:01:15]} 16. a4 {[%clk 0:01:20]}  Nfe8 {[%clk 0:00:45]} 17. Nd3 {[%clk 0:01:18]}  g6 {[%clk 0:00:38]} 18. Rae1 {[%clk 0:01:16]}  Ng7 {[%clk 0:00:38]} 19. f4 {[%clk 0:00:57]}  f6 {[%clk 0:00:36]} 20. fxe5 {[%clk 0:00:38]}  fxe5 {[%clk 0:00:34]} 21. Qc1 {[%clk 0:00:36]}  Rxf1+ {[%clk 0:00:27]} 22. Rxf1 {[%clk 0:00:37]}  Rf8 {[%clk 0:00:28]} 23. Rxf8+ {[%clk 0:00:36]}  Qxf8 {[%clk 0:00:27]} 24. Qf1 {[%clk 0:00:36]}  Nce8 {[%clk 0:00:25]} 25. Qxf8+ {[%clk 0:00:34]}  Kxf8 {[%clk 0:00:26]} 26. Kf2 {[%clk 0:00:35]}  Nf6 {[%clk 0:00:25]} 27. h3 {[%clk 0:00:32]}  b6 {[%clk 0:00:25]} 28. Nf1 {[%clk 0:00:31]}  Ngh5 {[%clk 0:00:18]} 29. Ne3 {[%clk 0:00:31]}  Kf7 {[%clk 0:00:18]} 30. Nf1 {[%clk 0:00:30]}  Ng7 {[%clk 0:00:18]} 31. Ne3 {[%clk 0:00:30]}  h6 {[%clk 0:00:18]} 32. Nf1 {[%clk 0:00:29]}  Nge8 {[%clk 0:00:19]} 33. Ne3 {[%clk 0:00:29]}  Nh7 {[%clk 0:00:20]} 34. h4 {[%clk 0:00:26]}  Nef6 {[%clk 0:00:20]} 35. Bf3 {[%clk 0:00:24]}  h5 {[%clk 0:00:19]} 36. Ne1 {[%clk 0:00:22]}  Kg7 {[%clk 0:00:19]} 37. N1g2 {[%clk 0:00:20]}  Kh6 {[%clk 0:00:20]} 38. Ke2 {[%clk 0:00:18]}  g5 {[%clk 0:00:20]} 39. hxg5+ {[%clk 0:00:18]}  Nxg5 {[%clk 0:00:21]} 40. Nf5+ {[%clk 0:00:16]}  Bxf5 {[%clk 0:00:20]} 41. exf5 {[%clk 0:00:17]}  e4 {[%clk 0:00:17]} 42. Bxe4 {[%clk 0:00:15]}  Ngxe4 {[%clk 0:00:18]} 43. Kf3 {[%clk 0:00:15]}  Kg5 {[%clk 0:00:18]} 44. Nf4 {[%clk 0:00:15]}  Nd2+ {[%clk 0:00:19]} 45. Ke3 {[%clk 0:00:14]}  Nxb3 {[%clk 0:00:20]} 46. Ne6+ {[%clk 0:00:13]}  Kxf5 {[%clk 0:00:21]} 47. Ng7+ {[%clk 0:00:10]}  Ke5 {[%clk 0:00:20]} 48. Ne6 {[%clk 0:00:08]}  Ng4+ {[%clk 0:00:20]} 49. Kf3 {[%clk 0:00:07]}  Nd4+ {[%clk 0:00:20]} 50. Kg2 {[%clk 0:00:07]}  Nxe6 {[%clk 0:00:19]} 0-1


[Site "https://www.chess.com"]

[Event "Titled Tuesday Blitz April 4 Early 2023"]
[White "Budrewicz, Krzysztof"]
[Black "Todorovic, Bojan"]
[WhiteFideId "1127950"]
[BlackFideId "917087"]
[WhiteElo "2230"]
[BlackElo "2266"]
[Result "1-0"]
[Round "05"]
[TimeControl "180+2"]
[Date "2023.04.04"]
[WhiteClock "0:01:01"]
[BlackClock "0:00:35"]

1. d4 {[%clk 0:03:00]}  Nf6 {[%clk 0:02:58]} 2. c4 {[%clk 0:03:01]}  g6 {[%clk 0:02:58]} 3. Nc3 {[%clk 0:03:00]}  Bg7 {[%clk 0:02:58]} 4. e4 {[%clk 0:03:01]}  d6 {[%clk 0:02:57]} 5. Be2 {[%clk 0:02:58]}  O-O {[%clk 0:02:56]} 6. Bg5 {[%clk 0:02:59]}  c5 {[%clk 0:02:46]} 7. d5 {[%clk 0:02:59]}  h6 {[%clk 0:02:45]} 8. Be3 {[%clk 0:02:58]}  e6 {[%clk 0:02:41]} 9. Qd2 {[%clk 0:02:58]}  exd5 {[%clk 0:02:37]} 10. cxd5 {[%clk 0:02:59]}  Re8 {[%clk 0:02:32]} 11. f3 {[%clk 0:02:59]}  h5 {[%clk 0:02:23]} 12. h4 {[%clk 0:02:52]}  a6 {[%clk 0:02:21]} 13. a4 {[%clk 0:02:52]}  Nbd7 {[%clk 0:02:21]} 14. Nh3 {[%clk 0:02:52]}  Ne5 {[%clk 0:02:18]} 15. Ng5 {[%clk 0:02:52]}  Bd7 {[%clk 0:02:12]} 16. O-O {[%clk 0:02:50]}  Rb8 {[%clk 0:02:08]} 17. a5 {[%clk 0:02:48]}  b5 {[%clk 0:02:07]} 18. axb6 {[%clk 0:02:47]}  Qxb6 {[%clk 0:02:06]} 19. Rxa6 {[%clk 0:02:44]}  Qc7 {[%clk 0:02:03]} 20. Rfa1 {[%clk 0:02:43]}  Rb7 {[%clk 0:02:00]} 21. R1a2 {[%clk 0:02:34]}  Reb8 {[%clk 0:01:59]} 22. Kh1 {[%clk 0:02:32]}  Rb4 {[%clk 0:01:56]} 23. Bg1 {[%clk 0:02:31]}  Nh7 {[%clk 0:01:39]} 24. f4 {[%clk 0:02:01]}  Nc4 {[%clk 0:01:36]} 25. Bxc4 {[%clk 0:01:53]}  Rxc4 {[%clk 0:01:36]} 26. e5 {[%clk 0:01:42]}  Nxg5 {[%clk 0:01:32]} 27. exd6 {[%clk 0:01:32]}  Qd8 {[%clk 0:01:27]} 28. hxg5 {[%clk 0:01:31]}  Bc8 {[%clk 0:00:57]} 29. Rc6 {[%clk 0:01:24]}  Bd7 {[%clk 0:00:55]} 30. Rxc5 {[%clk 0:01:24]}  Rcb4 {[%clk 0:00:48]} 31. Rc7 {[%clk 0:01:15]}  Bf5 {[%clk 0:00:47]} 32. Bc5 {[%clk 0:01:13]}  Rc4 {[%clk 0:00:42]} 33. Ba7 {[%clk 0:01:02]}  Ra8 {[%clk 0:00:35]} 34. Rxc4 {[%clk 0:01:01]} 1-0


[Site "https://www.chess.com"]

[Event "Titled Tuesday Blitz April 4 Early 2023"]
[White "Filgueira, Hernan"]
[Black "Ovezdurdyyeva, Jemal"]
[WhiteFideId "101770"]
[BlackFideId "14001888"]
[WhiteElo "2363"]
[BlackElo "2043"]
[Result "1-0"]
[Round "05"]
[TimeControl "180+2"]
[Date "2023.04.04"]
[WhiteClock "0:00:18"]
[BlackClock "0:00:03"]

1. c4 {[%clk 0:02:59]}  d6 {[%clk 0:02:59]} 2. d4 {[%clk 0:02:58]}  Nf6 {[%clk 0:02:49]} 3. Nc3 {[%clk 0:02:57]}  Nbd7 {[%clk 0:02:48]} 4. e4 {[%clk 0:02:56]}  c5 {[%clk 0:02:47]} 5. Nge2 {[%clk 0:02:52]}  e5 {[%clk 0:02:36]} 6. d5 {[%clk 0:02:48]}  g6 {[%clk 0:02:35]} 7. g3 {[%clk 0:02:45]}  Bg7 {[%clk 0:02:35]} 8. Bg2 {[%clk 0:02:45]}  O-O {[%clk 0:02:36]} 9. O-O {[%clk 0:02:45]}  Nh5 {[%clk 0:02:30]} 10. Bd2 {[%clk 0:02:28]}  f5 {[%clk 0:02:27]} 11. f3 {[%clk 0:02:27]}  a6 {[%clk 0:02:12]} 12. exf5 {[%clk 0:02:25]}  gxf5 {[%clk 0:02:11]} 13. Qc2 {[%clk 0:02:24]}  Rb8 {[%clk 0:02:05]} 14. a4 {[%clk 0:02:22]}  Ndf6 {[%clk 0:02:02]} 15. Bg5 {[%clk 0:02:17]}  h6 {[%clk 0:01:59]} 16. Bh4 {[%clk 0:02:16]}  Qe8 {[%clk 0:01:58]} 17. a5 {[%clk 0:02:07]}  Bd7 {[%clk 0:01:47]} 18. Na4 {[%clk 0:02:05]}  e4 {[%clk 0:01:18]} 19. Nb6 {[%clk 0:02:01]}  exf3 {[%clk 0:01:05]} 20. Rxf3 {[%clk 0:01:56]}  Ng4 {[%clk 0:01:05]} 21. Nxd7 {[%clk 0:01:35]}  Qxd7 {[%clk 0:01:03]} 22. h3 {[%clk 0:01:32]}  Ne5 {[%clk 0:01:02]} 23. Rff1 {[%clk 0:01:27]}  Ng6 {[%clk 0:01:01]} 24. Bf3 {[%clk 0:01:17]}  Nf6 {[%clk 0:00:56]} 25. Bxf6 {[%clk 0:01:15]}  Bxf6 {[%clk 0:00:55]} 26. Ra3 {[%clk 0:01:11]}  Qg7 {[%clk 0:00:53]} 27. Rb3 {[%clk 0:01:06]}  Be5 {[%clk 0:00:45]} 28. Kh1 {[%clk 0:01:05]}  Kh8 {[%clk 0:00:42]} 29. Rg1 {[%clk 0:01:04]}  Rg8 {[%clk 0:00:37]} 30. Bh5 {[%clk 0:00:49]}  Qf6 {[%clk 0:00:27]} 31. Rf3 {[%clk 0:00:44]}  Rbf8 {[%clk 0:00:26]} 32. Bxg6 {[%clk 0:00:41]}  Rxg6 {[%clk 0:00:25]} 33. b3 {[%clk 0:00:37]}  Rg5 {[%clk 0:00:18]} 34. Qd3 {[%clk 0:00:32]}  Qg6 {[%clk 0:00:18]} 35. g4 {[%clk 0:00:30]}  Rf6 {[%clk 0:00:14]} 36. Rgf1 {[%clk 0:00:27]}  fxg4 {[%clk 0:00:13]} 37. Qxg6 {[%clk 0:00:25]}  Rfxg6 {[%clk 0:00:12]} 38. Rf8+ {[%clk 0:00:24]}  Kh7 {[%clk 0:00:11]} 39. h4 {[%clk 0:00:23]}  Rh5 {[%clk 0:00:11]} 40. R8f7+ {[%clk 0:00:21]}  Bg7 {[%clk 0:00:11]} 41. Kg2 {[%clk 0:00:20]}  Rxh4 {[%clk 0:00:11]} 42. Nf4 {[%clk 0:00:20]}  Rf6 {[%clk 0:00:09]} 43. Ne6 {[%clk 0:00:19]}  Rg6 {[%clk 0:00:04]} 44. Rxb7 {[%clk 0:00:18]}  g3 {[%clk 0:00:03]} 45. Rff7 {[%clk 0:00:18]}  Rh2+ {[%clk 0:00:03]} 46. Kg1 {[%clk 0:00:18]} 1-0


[Site "https://www.chess.com"]

[Event "Titled Tuesday Blitz April 4 Early 2023"]
[White "Tomaszewski, Kacper"]
[Black "Kraus, Tomas"]
[WhiteFideId "1127373"]
[BlackFideId "331708"]
[WhiteElo "2211"]
[BlackElo "2389"]
[Result "1-0"]
[Round "05"]
[TimeControl "180+2"]
[Date "2023.04.04"]
[WhiteClock "0:00:50"]
[BlackClock "0:00:06"]

1. Nc3 {[%clk 0:03:00]}  c5 {[%clk 0:02:57]} 2. e4 {[%clk 0:03:00]}  e6 {[%clk 0:02:56]} 3. g3 {[%clk 0:03:00]}  Nc6 {[%clk 0:02:55]} 4. Bg2 {[%clk 0:03:01]}  g6 {[%clk 0:02:54]} 5. Nge2 {[%clk 0:03:00]}  Bg7 {[%clk 0:02:55]} 6. d3 {[%clk 0:03:00]}  d6 {[%clk 0:02:54]} 7. h4 {[%clk 0:03:00]}  h5 {[%clk 0:02:53]} 8. Bg5 {[%clk 0:02:59]}  Qb6 {[%clk 0:02:48]} 9. O-O {[%clk 0:02:50]}  Nge7 {[%clk 0:02:40]} 10. Rb1 {[%clk 0:02:41]}  O-O {[%clk 0:02:39]} 11. a3 {[%clk 0:02:41]}  Qc7 {[%clk 0:02:37]} 12. b4 {[%clk 0:02:38]}  cxb4 {[%clk 0:02:32]} 13. axb4 {[%clk 0:02:38]}  a6 {[%clk 0:02:32]} 14. b5 {[%clk 0:02:36]}  Nd4 {[%clk 0:02:25]} 15. b6 {[%clk 0:02:16]}  Qd7 {[%clk 0:02:24]} 16. Nxd4 {[%clk 0:02:14]}  Bxd4 {[%clk 0:02:24]} 17. Ne2 {[%clk 0:02:13]}  Bg7 {[%clk 0:02:23]} 18. d4 {[%clk 0:02:12]}  Nc6 {[%clk 0:02:20]} 19. c4 {[%clk 0:02:08]}  e5 {[%clk 0:02:10]} 20. d5 {[%clk 0:02:04]}  Ne7 {[%clk 0:02:02]} 21. c5 {[%clk 0:02:00]}  dxc5 {[%clk 0:01:53]} 22. Qc2 {[%clk 0:02:00]}  f6 {[%clk 0:01:33]} 23. Be3 {[%clk 0:01:57]}  f5 {[%clk 0:01:33]} 24. Bxc5 {[%clk 0:01:54]}  f4 {[%clk 0:01:28]} 25. Qb3 {[%clk 0:01:27]}  Kh7 {[%clk 0:01:24]} 26. Bf3 {[%clk 0:01:14]}  Bf6 {[%clk 0:00:48]} 27. Rbc1 {[%clk 0:01:04]}  Qh3 {[%clk 0:00:43]} 28. Bxe7 {[%clk 0:00:53]}  Bxe7 {[%clk 0:00:40]} 29. Rc7 {[%clk 0:00:53]}  Re8 {[%clk 0:00:15]} 30. Bg2 {[%clk 0:00:52]}  Qg4 {[%clk 0:00:14]} 31. f3 {[%clk 0:00:52]}  Qd7 {[%clk 0:00:05]} 32. Rxd7 {[%clk 0:00:51]}  Bxd7 {[%clk 0:00:06]} 33. d6 {[%clk 0:00:50]} 1-0


[Site "https://www.chess.com"]